bitfinex/quotes_BTCUSD_20260308
["timestamp","ask_amount","ask_price","bid_price","bid_amount"]
[1772989058062,0.00034141,66930.0,66920.0,0.15410705]
[1772989058213,1e-08,66933.0,66920.0,0.15410705]
[1772989058416,0.01546685,66936.0,66923.0,0.07471272]
[1772989058417,0.00148,66935.0,66923.0,0.07471272]
[1772989058617,0.00015,66938.0,66926.0,0.15410705]
[1772989058816,0.00163,66938.0,66926.0,0.17046357]
[1772989059046,0.00015,66938.0,66928.0,0.15410705]
[1772989059219,0.00015,66938.0,66930.0,0.15410705]
[1772989059220,1e-08,66938.0,66930.0,0.15410705]
[1772989059421,1e-08,66938.0,66931.0,0.17046357]
[1772989059829,1e-08,66938.0,66923.0,0.00148]
[1772989059830,0.16632909,66937.0,66923.0,0.00148]
[1772989060085,0.01455649,66936.0,66923.0,0.00148]
[1772989060428,0.07489816,66938.0,66925.0,0.15410705]
[1772989060429,0.00020121,66938.0,66925.0,0.15410705]
[1772989060630,0.00020121,66938.0,66924.0,0.07471161]
[1772989060631,0.00020121,66938.0,66928.0,0.01487652]
[1772989060836,0.00020121,66938.0,66929.0,0.15558705]
[1772989061442,0.00020121,66938.0,66930.0,0.01487652]
[1772989061748,1e-08,66938.0,66931.0,0.01487652]
[1772989061984,1e-08,66938.0,66931.0,0.16898357]
[1772989062554,1e-08,66938.0,66932.0,0.07470268]
[1772989062775,1e-08,66938.0,66932.0,0.22880973]
[1772989062977,1e-08,66938.0,66932.0,0.07470268]
[1772989063813,0.00011933,66938.0,66932.0,0.07470268]
[1772989064879,0.00011933,66938.0,66931.0,0.07470268]
[1772989065115,0.0001428,66940.0,66933.0,0.01487652]
[1772989065317,0.0001428,66940.0,66933.0,0.16898357]
[1772989065827,0.0001428,66940.0,66934.0,0.00148]
[1772989066603,0.00022001,66938.0,66934.0,0.00148]
[1772989067031,0.00022001,66938.0,66935.0,0.07469933]
[1772989067429,0.08048945,66944.0,66935.0,0.07469933]
[1772989067903,0.09504594,66944.0,66935.0,0.07469933]
[1772989069479,0.01455649,66943.0,66935.0,0.07469933]
[1772989069777,0.16632909,66943.0,66933.0,2.11e-06]
[1772989069991,0.16632909,66943.0,66927.0,0.07470821]
[1772989069992,0.16632909,66940.0,66921.0,0.0001428]
[1772989070194,0.01603649,66939.0,66922.0,0.07619296]
[1772989070391,0.01455649,66938.0,66922.0,0.07619296]
[1772989070952,0.01455649,66936.0,66922.0,0.07619296]
[1772989071353,0.01455649,66934.0,66922.0,0.07619296]
[1772989071563,0.01603649,66934.0,66922.0,0.07619296]
[1772989072484,0.01455649,66934.0,66922.0,0.07619296]
[1772989072712,0.01603649,66934.0,66922.0,0.07619296]
[1772989073113,0.01455649,66934.0,66922.0,0.07619296]
[1772989073458,0.01455649,66932.0,66922.0,0.07619296]
[1772989075323,0.01455649,66932.0,66922.0,0.23030001]
[1772989075764,0.0747006,66934.0,66922.0,0.07619296]
[1772989076053,0.0747006,66934.0,66923.0,0.15410705]
[1772989076671,0.01455649,66933.0,66923.0,0.15410705]
[1772989077683,0.07639904,66936.0,66924.0,0.07471161]
[1772989077889,0.07469933,66935.0,66925.0,0.15410705]
[1772989078626,0.08925582,66935.0,66925.0,0.15410705]
[1772989079713,0.08925582,66935.0,66926.0,0.07470938]
[1772989081682,0.08925582,66935.0,66925.0,0.22881713]
[1772989081880,0.01455649,66934.0,66925.0,0.07471008]
[1772989083738,0.07470156,66933.0,66925.0,0.0002]
[1772989084855,0.07470156,66933.0,66921.0,0.15436917]
[1772989084856,0.07470156,66933.0,66905.0,0.07493221]
[1772989084857,0.16462398,66928.0,66905.0,0.07493221]
[1772989085040,0.04961449,66930.0,66906.0,0.07469079]
[1772989085041,0.01516829,66919.0,66906.0,0.07469079]
[1772989085239,0.01516829,66919.0,66907.0,0.16126994]
[1772989085848,0.07471831,66918.0,66908.0,0.07472947]
[1772989086099,0.0898866,66918.0,66908.0,0.07472947]
[1772989086429,0.0898866,66918.0,66908.0,0.07620947]
[1772989087597,0.0898866,66918.0,66908.0,0.07472947]
[1772989087767,0.07471831,66918.0,66908.0,0.07472947]
[1772989087973,0.01516829,66917.0,66908.0,0.07472947]
[1772989088700,0.01516829,66917.0,66907.0,0.23599941]
[1772989088701,0.01516829,66917.0,66907.0,0.07620947]
[1772989089234,0.01516829,66917.0,66907.0,0.07472947]
[1772989090314,0.07471831,66918.0,66908.0,0.16126994]
[1772989090514,0.07619831,66918.0,66908.0,0.17710091]
[1772989092249,0.07471487,66922.0,66909.0,0.07472836]
[1772989092501,0.07619487,66922.0,66910.0,0.16126994]
[1772989093099,0.00558,66917.0,66879.0,0.07476175]
[1772989093305,0.00558,66917.0,66886.0,0.00031941]
[1772989093306,0.01570589,66899.0,66886.0,0.00031941]
[1772989093509,0.01570589,66897.0,66886.0,0.00031941]
[1772989093717,0.01570589,66897.0,66884.0,0.0002]
[1772989093863,0.01570589,66896.0,66884.0,0.0002]
[1772989094277,0.01570589,66894.0,66884.0,0.0002]
[1772989094684,0.16462398,66893.0,66877.0,0.0002]
[1772989094904,0.01570589,66891.0,66877.0,0.07501716]
[1772989096352,0.07474958,66890.0,66877.0,0.07501716]
[1772989096523,0.01570589,66889.0,66877.0,0.07501713]
[1772989097223,0.01555589,66889.0,66877.0,0.07501713]
[1772989099729,0.07475182,66888.0,66877.0,0.07501713]
[1772989100002,0.01718589,66887.0,66877.0,0.07501713]
[1772989101929,0.07475405,66886.0,66877.0,0.07501713]
[1772989102377,0.06475405,66886.0,66877.0,0.07501713]
[1772989103417,0.06475405,66886.0,66877.0,0.03708779]
[1772989105096,0.01718589,66887.0,66877.0,0.03708779]
[1772989105646,0.01570589,66887.0,66877.0,0.03708779]
[1772989105840,0.01570589,66887.0,66877.0,0.19835773]
[1772989105841,0.01566589,66887.0,66877.0,0.19835773]
[1772989106457,0.01566589,66887.0,66877.0,0.19855773]
[1772989107230,0.07475405,66886.0,66877.0,0.19855773]
[1772989110968,0.16462398,66878.0,66858.0,0.16126994]
[1772989111174,0.01570589,66874.0,66854.0,0.07478906]
[1772989111377,0.01570589,66869.0,66854.0,0.16282925]
[1772989111587,0.01570589,66867.0,66854.0,0.16134925]
[1772989111900,0.00148,66868.0,66850.0,0.0002949]
[1772989111901,0.16462398,66866.0,66850.0,0.0002949]
[1772989112107,0.16462398,66866.0,66842.0,0.24400138]
[1772989112108,0.01570589,66859.0,66844.0,0.16126994]
[1772989112361,0.07478648,66857.0,66844.0,0.23606985]
[1772989112562,0.07478648,66857.0,66845.0,0.16126994]
[1772989113576,0.09197237,66858.0,66844.0,0.07479991]
[1772989113577,0.00148,66858.0,66846.0,0.01583097]
[1772989113791,0.07626573,66858.0,66847.0,0.18041786]
[1772989114622,0.07478573,66858.0,66845.0,0.0002]
[1772989114821,0.01570589,66857.0,66845.0,0.0002]
[1772989115034,0.01570589,66857.0,66845.0,0.07499943]
[1772989115689,0.01570589,66857.0,66845.0,0.23958632]
[1772989116200,0.01570589,66857.0,66846.0,0.16458689]
[1772989117218,0.07477812,66865.0,66847.0,0.16458689]
[1772989117365,0.07477865,66864.0,66850.0,0.01583097]
[1772989117566,0.07477865,66864.0,66851.0,0.16458689]
[1772989117941,0.00148,66863.0,66851.0,0.18041786]
[1772989118100,0.00148,66862.0,66851.0,0.18041786]
[1772989118300,0.07625865,66864.0,66853.0,0.16458689]
[1772989118708,0.07477865,66864.0,66853.0,0.16458689]
[1772989118874,0.07625865,66864.0,66853.0,0.16458689]
[1772989120079,0.0925714,66864.0,66853.0,0.16458689]
[1772989120257,0.00148,66863.0,66853.0,0.23937752]
[1772989120464,0.00148,66863.0,66854.0,0.16458689]
[1772989120721,0.0001192,66866.0,66854.0,0.16458689]
[1772989120722,0.07489601,66866.0,66854.0,0.16458689]
[1772989120925,0.07489601,66866.0,66853.0,0.07479063]
[1772989120926,0.00148,66865.0,66856.0,0.18008473]
[1772989121125,0.0001192,66866.0,66856.0,0.18008473]
[1772989121278,0.0001192,66866.0,66858.0,0.16458689]
[1772989121597,0.0001192,66866.0,66858.0,0.14392943]
[1772989123260,0.07477082,66871.0,66858.0,0.14392943]
[1772989123261,0.07477082,66871.0,66859.0,0.07478424]
[1772989123569,0.07477082,66871.0,66859.0,0.0001192]
[1772989123570,0.01631275,66869.0,66859.0,0.0001192]
[1772989123700,0.01779275,66869.0,66859.0,0.0001192]
[1772989127116,0.07477418,66868.0,66859.0,0.0001192]
[1772989128720,0.07477418,66868.0,66833.0,0.0002949]
[1772989128923,0.01631275,66864.0,66839.0,0.16458689]
[1772989129100,0.01631275,66859.0,66839.0,0.16606689]
[1772989129300,0.01631275,66857.0,66841.0,0.16458689]
[1772989129598,0.01779275,66857.0,66842.0,0.00148]
[1772989129798,0.01779275,66857.0,66843.0,0.16458689]
[1772989129955,0.01779275,66857.0,66844.0,0.01549784]
[1772989130178,0.07478536,66858.0,66848.0,0.01549784]
[1772989130383,0.07626536,66858.0,66849.0,0.16458689]
[1772989131206,0.07478536,66858.0,66849.0,0.16458689]
[1772989131350,0.09109811,66858.0,66849.0,0.16458689]
[1772989132022,0.09105811,66858.0,66849.0,0.16458689]
[1772989132324,0.09090811,66858.0,66846.0,0.16458689]
[1772989132520,0.07459536,66858.0,66846.0,0.16458689]
[1772989133169,0.07459536,66858.0,66846.0,0.07479823]
[1772989133349,0.07459536,66858.0,66847.0,0.16458689]
[1772989133909,0.00148,66857.0,66847.0,0.16458689]
[1772989134736,0.00148,66856.0,66847.0,0.16458689]
[1772989135384,0.07478872,66855.0,66847.0,0.16458689]
[1772989137767,0.07478872,66855.0,66822.0,0.00148]
[1772989137768,0.16651483,66852.0,66822.0,0.00148]
[1772989137972,0.01631275,66839.0,66824.0,0.00148]
[1772989138195,0.01631275,66837.0,66824.0,0.00148]
[1772989139108,0.01631275,66837.0,66824.0,0.00287814]
[1772989139459,0.07480998,66836.0,66824.0,0.00187814]
[1772989139739,0.01631275,66835.0,66824.0,0.00187814]
[1772989140310,0.01631275,66835.0,66824.0,0.16646503]
[1772989140904,0.01631275,66835.0,66825.0,0.16458689]
[1772989141106,0.07480998,66836.0,66825.0,0.16458689]
[1772989141508,0.07480998,66838.0,66825.0,0.08636201]
[1772989141717,0.07480998,66838.0,66826.0,0.16458689]
[1772989141914,0.07480998,66838.0,66825.0,0.07482172]
[1772989141915,0.07480998,66838.0,66828.0,0.16458689]
[1772989143038,0.0748055,66841.0,66830.0,0.16366258]
[1772989143250,0.0748055,66841.0,66825.0,0.07482172]
[1772989143251,0.0748055,66841.0,66832.0,0.16366258]
[1772989143444,0.07480102,66844.0,66832.0,0.17504603]
[1772989143821,0.14899376,66846.0,66833.0,0.16366258]
[1772989144018,0.06124465,66846.0,66835.0,0.17569566]
[1772989145777,0.06124465,66846.0,66836.0,0.1667174]
[1772989145971,0.06124465,66846.0,66837.0,0.00152]
[1772989146416,0.1617498,66855.0,66837.0,0.00152]
[1772989146417,0.0747867,66857.0,66839.0,0.00859881]
[1772989146533,0.1617498,66856.0,66836.0,0.08340879]
[1772989146745,0.01648138,66853.0,66833.0,0.07481285]
[1772989147069,0.01648138,66851.0,66835.0,0.1667174]
[1772989147691,0.09127569,66850.0,66837.0,0.07480886]
[1772989148357,0.09127569,66850.0,66838.0,0.00152]
[1772989148835,0.07479431,66850.0,66839.0,0.00152]
[1772989148984,0.07479431,66850.0,66840.0,0.1667174]
[1772989149841,0.01662386,66852.0,66840.0,0.07480539]
[1772989150144,0.01662386,66852.0,66840.0,0.1667174]
[1772989151139,0.07479431,66853.0,66840.0,0.17498585]
[1772989152514,0.01662386,66853.0,66841.0,0.00152]
[1772989152845,0.01662386,66853.0,66842.0,0.00152]
[1772989153254,0.01662386,66853.0,66840.0,0.24152273]
[1772989153459,0.01662386,66853.0,66843.0,0.00152]
[1772989154008,0.01662386,66853.0,66844.0,0.00152]
[1772989154218,0.09141593,66852.0,66844.0,0.00132]
[1772989154416,0.09141593,66852.0,66841.0,0.0748043]
[1772989154634,0.09141593,66852.0,66845.0,0.00152]
[1772989154832,0.09141593,66852.0,66840.0,0.24152236]
[1772989155064,0.09141593,66852.0,66846.0,0.00112]
[1772989155183,0.09141593,66852.0,66846.0,0.00092]
[1772989155384,0.07479207,66852.0,66847.0,0.00152]
[1772989155579,0.07479207,66852.0,66848.0,0.00152]
[1772989155846,0.07479207,66852.0,66849.0,0.00152]
[1772989156085,0.01662386,66851.0,66850.0,0.00152]
[1772989156288,0.07479431,66851.0,66836.0,0.24152677]
[1772989156498,0.01662386,66850.0,66837.0,0.00152]
[1772989156713,0.01662386,66850.0,66833.0,0.0076552]
[1772989156714,0.00023,66824.0,66782.0,0.00556]
[1772989156922,0.00023,66824.0,66789.0,0.00039814]
[1772989156923,0.316005,66793.0,66789.0,0.00039814]
[1772989157123,0.01662386,66799.0,66790.0,0.00152]
[1772989157331,0.00039772,66799.0,66791.0,0.00132]
[1772989157565,0.00039772,66799.0,66792.0,0.00152]
[1772989157781,0.00780403,66802.0,66793.0,0.00152]
[1772989157954,0.00750124,66802.0,66794.0,0.00152]
[1772989158173,0.07484917,66801.0,66794.0,0.00152]
[1772989158393,0.00762049,66802.0,66794.0,0.07637671]
[1772989158767,0.00813738,66801.0,66794.0,0.07617671]
[1772989159158,0.00813738,66801.0,66791.0,0.001]
[1772989159504,0.01662386,66800.0,66793.0,0.0002]
[1772989159801,0.01647251,66800.0,66793.0,0.0002]
[1772989160175,0.07485141,66799.0,66793.0,0.0002]
[1772989161024,0.08040092,66809.0,66793.0,0.0002]
[1772989161025,0.07484316,66807.0,66795.0,0.017101]
[1772989161262,0.00556,66809.0,66798.0,0.1665174]
[1772989161480,0.00556,66809.0,66800.0,0.016901]
[1772989161717,0.00556,66809.0,66800.0,0.1836184]
[1772989161935,0.07484133,66808.0,66795.0,0.00011925]
[1772989162169,0.07484133,66808.0,66801.0,0.00132]
[1772989162382,0.07484133,66808.0,66801.0,0.00112]
[1772989162595,0.07484133,66808.0,66801.0,0.00092]
[1772989163243,0.07484133,66808.0,66796.0,0.07485474]
[1772989163244,0.07484133,66808.0,66796.0,0.1838184]
[1772989163476,0.07484133,66808.0,66797.0,0.01557644]
[1772989163688,0.07484133,66808.0,66797.0,0.18229384]
[1772989163902,0.07484133,66808.0,66797.0,0.18209384]
[1772989164311,0.07484133,66808.0,66798.0,0.07637254]
[1772989164482,0.00556,66809.0,66799.0,0.1667174]
[1772989164696,0.08040042,66809.0,66798.0,0.07617254]
[1772989164895,0.08040042,66809.0,66798.0,0.07577254]
[1772989165100,0.01662386,66808.0,66798.0,0.07577254]
[1772989165459,0.01662386,66808.0,66798.0,0.07557254]
[1772989165670,0.08040042,66809.0,66798.0,0.07557254]
[1772989165871,0.07483349,66815.0,66802.0,0.01520838]
[1772989166093,0.07483349,66815.0,66803.0,0.18172578]
[1772989166295,0.07483349,66817.0,66804.0,0.07636581]
[1772989166720,0.07483349,66817.0,66804.0,0.09167001]
[1772989166930,0.07483349,66817.0,66805.0,0.1667174]
[1772989167599,0.07483349,66817.0,66804.0,0.00152]
[1772989168204,0.09145735,66817.0,66804.0,0.00152]
[1772989168991,0.09145735,66817.0,66805.0,0.00152]
[1772989169424,6.866e-05,66808.0,66805.0,0.00152]
[1772989169623,0.00022001,66815.0,66805.0,0.00152]
[1772989169789,0.09145735,66817.0,66805.0,0.1680374]
[1772989169996,0.09145735,66817.0,66806.0,0.00152]
[1772989170181,0.09145735,66817.0,66806.0,0.00132]
[1772989170385,0.07482728,66821.0,66807.0,0.1667174]
[1772989170638,0.07482728,66821.0,66809.0,0.18149586]
[1772989170804,0.07482728,66821.0,66810.0,0.01477846]
[1772989171011,0.07482728,66821.0,66811.0,0.07483797]
[1772989171209,0.07482728,66821.0,66812.0,0.00136183]
[1772989171813,0.00022001,66822.0,66813.0,0.1667174]
[1772989172043,0.07504571,66822.0,66813.0,0.1667174]
[1772989172442,0.00022001,66822.0,66814.0,0.017101]
[1772989172903,0.07482117,66826.0,66816.0,0.017101]
[1772989173118,0.07482117,66828.0,66818.0,0.07483013]
[1772989173357,0.07482117,66828.0,66819.0,0.00152]
[1772989173751,0.07481781,66829.0,66819.0,0.00152]
[1772989174154,0.0749373,66829.0,66819.0,0.00152]
[1772989174632,0.00011949,66829.0,66819.0,0.018621]
[1772989174780,0.00011949,66829.0,66820.0,0.017101]
[1772989174981,0.08037047,66836.0,66823.0,0.017101]
[1772989174982,0.07481278,66834.0,66823.0,0.017101]
[1772989175187,0.07480184,66844.0,66829.0,0.017101]
[1772989175366,0.07480184,66844.0,66831.0,0.017101]
[1772989177166,0.01276631,66846.0,66833.0,0.07481334]
[1772989177411,0.01276631,66846.0,66834.0,0.16468846]
[1772989177612,0.08756525,66846.0,66835.0,0.017101]
[1772989177883,0.08756525,66846.0,66833.0,0.07481334]
[1772989177884,0.00022001,66844.0,66833.0,0.07481334]
[1772989178088,0.00022001,66844.0,66834.0,0.00152]
[1772989178285,0.01684387,66844.0,66834.0,0.00152]
[1772989179243,0.09164496,66844.0,66835.0,0.0748111]
[1772989180173,0.09318258,66844.0,66836.0,0.00152]
[1772989181635,0.09318258,66844.0,66836.0,0.0763298]
[1772989181800,0.09318258,66844.0,66836.0,0.0763292]
[1772989182139,0.0750211,66844.0,66836.0,0.0763292]
[1772989182951,0.0750211,66844.0,66837.0,0.00152]
[1772989184018,0.00022001,66844.0,66837.0,0.07632801]
[1772989184227,0.00037841,66846.0,66838.0,0.01735415]
[1772989184763,0.00037841,66846.0,66837.0,0.07632801]
[1772989184764,0.00022001,66851.0,66839.0,0.16468846]
[1772989184948,0.00022001,66851.0,66837.0,0.07632801]
[1772989184949,0.00033945,66851.0,66842.0,0.01735415]
[1772989185144,0.00033945,66851.0,66844.0,0.01735415]
[1772989185515,0.07500412,66860.0,66846.0,0.01735415]
[1772989185714,0.07478442,66859.0,66848.0,0.01735415]
[1772989185989,0.0747846,66859.0,66850.0,0.01735415]
[1772989186144,0.07500412,66860.0,66851.0,0.07479319]
[1772989186353,0.07478443,66859.0,66851.0,0.07479319]
[1772989186572,0.07500412,66860.0,66851.0,0.07479319]
[1772989186774,0.07500412,66860.0,66852.0,0.01735415]
[1772989186775,0.00022001,66860.0,66852.0,0.01735415]
[1772989186972,0.00022001,66860.0,66851.0,0.07479319]
[1772989186973,0.00557,66863.0,66854.0,0.18204261]
[1772989187171,0.08035018,66863.0,66855.0,0.00152]
[1772989187387,0.00557,66863.0,66855.0,0.00152]
[1772989188417,0.00557,66863.0,66856.0,0.0747876]
[1772989189864,0.08035013,66863.0,66856.0,0.0747876]
[1772989190069,0.00557,66863.0,66856.0,0.0747876]
[1772989192200,0.03027162,66876.0,66857.0,0.01735415]
[1772989192430,0.01211014,66876.0,66861.0,0.01735415]
[1772989192640,0.01211014,66876.0,66865.0,0.01735415]
[1772989193249,0.01211014,66876.0,66866.0,0.09213056]
[1772989194291,0.08687551,66876.0,66866.0,0.09213056]
[1772989194969,0.00022001,66870.0,66866.0,0.07477641]
[1772989195141,0.00022001,66870.0,66868.0,0.07477418]
[1772989195288,0.00022001,66870.0,66869.0,0.00152]
[1772989195931,0.00022001,66875.0,66869.0,0.00152]
[1772989196132,1e-08,66875.0,66869.0,0.01887415]
[1772989196576,0.00039807,66875.0,66869.0,0.00152]
[1772989197163,0.07475692,66884.0,66870.0,0.07477194]
[1772989197361,0.00033938,66882.0,66871.0,0.01727576]
[1772989198023,0.07509805,66882.0,66871.0,0.01727576]
[1772989198239,0.01816148,66878.0,66848.0,0.0752257]
[1772989198372,0.16861932,66875.0,66849.0,0.00152]
[1772989198578,0.16861932,66871.0,66849.0,0.00152]
[1772989198773,0.01816148,66868.0,66849.0,0.01887415]
[1772989198976,0.01816148,66867.0,66849.0,0.01887415]
[1772989200039,0.09293789,66866.0,66850.0,0.09214846]
[1772989200547,0.00033938,66882.0,66852.0,0.01735415]
[1772989200853,0.0003824,66888.0,66857.0,0.18204261]
[1772989200987,0.0003824,66888.0,66859.0,0.799152]
[1772989201172,0.0003824,66888.0,66857.0,0.00039806]
[1772989201173,0.01816148,66887.0,66860.0,0.32359415]
[1772989201376,0.16861932,66886.0,66861.0,0.16468846]
[1772989201631,0.01816148,66885.0,66864.0,0.01735415]
[1772989201834,0.01816148,66885.0,66867.0,0.0747753]
[1772989201835,0.07475522,66885.0,66867.0,0.0747753]
[1772989202066,0.07513427,66888.0,66854.0,0.07478874]
[1772989202067,0.16861932,66884.0,66854.0,0.07478874]
[1772989202216,0.07475294,66887.0,66858.0,0.00152]
[1772989202217,0.16861932,66876.0,66858.0,0.00152]
[1772989202560,0.16861932,66876.0,66854.0,0.07478952]
[1772989202561,0.01816148,66865.0,66854.0,0.07478952]
[1772989202785,0.17999974,66862.0,66849.0,0.07499477]
[1772989202944,0.00022001,66867.0,66822.0,0.56312499]
[1772989202945,0.01816148,66859.0,66843.0,0.07480214]
[1772989203159,0.01816148,66857.0,66844.0,0.00152]
[1772989203963,0.01816148,66857.0,66842.0,0.0002]
[1772989203964,0.01816148,66854.0,66842.0,0.0002]
[1772989204303,0.07478648,66858.0,66843.0,0.00152]
[1772989204438,0.17999974,66861.0,66843.0,0.17535752]
[1772989204439,0.01816148,66861.0,66843.0,0.17535752]
[1772989204645,0.01816148,66861.0,66844.0,0.16523076]
[1772989204842,0.01816148,66861.0,66845.0,0.0180736]
[1772989205233,0.01816148,66861.0,66845.0,0.01819297]
[1772989206048,0.07478312,66860.0,66846.0,0.07479879]
[1772989206250,0.01778152,66859.0,66846.0,0.07479879]
[1772989206877,0.0176302,66859.0,66846.0,0.07479879]
[1772989207283,0.01778152,66871.0,66847.0,0.16523076]
[1772989207531,0.01778152,66871.0,66851.0,0.16523076]
[1772989207532,0.09255269,66871.0,66851.0,0.16523076]
[1772989207729,0.09254687,66876.0,66854.0,0.16523076]
[1772989207903,0.09254687,66876.0,66852.0,0.00152]
[1772989207904,0.01778152,66876.0,66857.0,0.0180736]
[1772989208111,0.00022001,66881.0,66864.0,0.16523076]
[1772989208320,0.00022001,66881.0,66862.0,0.07478089]
[1772989208321,0.02336152,66890.0,66867.0,0.0180736]
[1772989208506,0.07475341,66887.0,66871.0,0.01788506]
[1772989208697,0.07475341,66887.0,66862.0,0.25422089]
[1772989208698,0.07475341,66887.0,66873.0,0.01788506]
[1772989208903,0.07475341,66887.0,66874.0,0.00152]
[1772989209120,0.07475341,66887.0,66874.0,0.01940506]
[1772989209441,0.0003824,66888.0,66874.0,0.01940506]
[1772989209620,0.00186252,66884.0,66874.0,0.01940506]
[1772989210204,0.00186252,66884.0,66875.0,0.07476635]
[1772989210405,0.01827182,66882.0,66863.0,0.07477889]
[1772989210640,0.00022001,66870.0,66864.0,0.00152]
[1772989210809,0.00022001,66870.0,66863.0,0.07477889]
[1772989211008,0.01849183,66870.0,66865.0,0.00152]
[1772989211431,0.01849183,66870.0,66866.0,0.00152]
[1772989211629,0.00022001,66870.0,66863.0,0.07477889]
[1772989211835,0.00022001,66870.0,66864.0,0.00152]
[1772989211999,0.00022001,66870.0,66863.0,0.07477889]
[1772989212195,0.00022001,66870.0,66866.0,0.07477641]
[1772989212628,0.01849183,66870.0,66866.0,0.07477641]
[1772989212971,0.01849183,66870.0,66867.0,0.00152]
[1772989213177,1e-08,66877.0,66867.0,0.00152]
[1772989213394,1e-08,66877.0,66866.0,0.07477641]
[1772989213395,1e-08,66877.0,66868.0,0.01940506]
[1772989213546,1e-08,66877.0,66868.0,0.01788506]
[1772989213745,1e-08,66877.0,66869.0,0.00152]
[1772989213948,1e-08,66877.0,66866.0,0.07477641]
[1772989214150,1e-08,66877.0,66861.0,0.07478201]
[1772989214353,1e-08,66877.0,66862.0,0.00152]
[1772989214762,1e-08,66877.0,66861.0,0.07478201]
[1772989214965,1e-08,66877.0,66862.0,0.01940506]
[1772989215378,1e-08,66877.0,66862.0,0.01788506]
[1772989215877,1e-08,66877.0,66863.0,0.00152]
[1772989216507,1e-08,66877.0,66864.0,0.00152]
[1772989216880,1e-08,66877.0,66863.0,0.07477977]
[1772989217084,1e-08,66877.0,66864.0,0.00152]
[1772989217298,1e-08,66877.0,66863.0,0.07477977]
[1772989217543,1e-08,66877.0,66867.0,0.16523076]
[1772989217691,1e-08,66877.0,66870.0,0.01788506]
[1772989217890,1e-08,66877.0,66872.0,0.01788506]
[1772989218336,0.11919075,66895.0,66872.0,0.01788506]
[1772989218506,0.07474145,66898.0,66876.0,0.01788506]
[1772989218507,0.07519305,66896.0,66876.0,0.01788506]
[1772989218685,0.00022001,66891.0,66879.0,0.16523076]
[1772989219024,0.00022001,66891.0,66878.0,0.01788506]
[1772989219229,0.01827182,66890.0,66879.0,0.00152]
[1772989219932,0.07519305,66896.0,66879.0,0.00152]
[1772989219933,0.00045001,66896.0,66882.0,0.01788506]
[1772989220143,0.00045001,66896.0,66884.0,0.16523076]
[1772989220144,0.07519328,66896.0,66884.0,0.16523076]
[1772989220346,0.07519328,66896.0,66885.0,0.01940506]
[1772989220551,0.07519328,66896.0,66863.0,0.08035938]
[1772989220552,0.01827182,66892.0,66863.0,0.08035938]
[1772989220751,0.17547855,66889.0,66864.0,0.00152]
[1772989221048,0.17547855,66885.0,66864.0,0.16675076]
[1772989221208,0.01827182,66884.0,66865.0,0.18311582]
[1772989221409,0.01827182,66884.0,66866.0,0.01788506]
[1772989222136,0.17547855,66882.0,66866.0,0.01788506]
[1772989222345,0.01827182,66881.0,66866.0,0.01788506]
[1772989223294,0.07476076,66880.0,66867.0,0.09266036]
[1772989223496,0.07476076,66880.0,66867.0,0.25789112]
[1772989225596,0.07476076,66880.0,66867.0,0.09266036]
[1772989225801,0.07476076,66880.0,66867.0,0.0747753]
[1772989226383,0.0747605,66881.0,66867.0,0.0747753]
[1772989226593,0.0747605,66881.0,66868.0,0.01788506]
[1772989226803,0.0747605,66881.0,66869.0,0.01788506]
[1772989227015,0.0747605,66881.0,66870.0,0.00152]
[1772989227570,0.01827182,66880.0,66871.0,0.07477082]
[1772989231565,0.17547855,66877.0,66850.0,0.07479431]
[1772989231683,0.07476188,66879.0,66851.0,0.07479239]
[1772989231684,0.01776174,66874.0,66851.0,0.07479239]
[1772989232039,0.01776174,66874.0,66850.0,0.07479431]
[1772989232040,0.01464976,66870.0,66852.0,0.00152]
[1772989232198,0.17547855,66867.0,66850.0,0.07479431]
[1772989232395,0.0144118,66866.0,66851.0,0.00152]
[1772989232598,0.0144118,66866.0,66852.0,0.00152]
[1772989233145,0.0144118,66866.0,66857.0,0.0002]
[1772989233443,0.01480954,66866.0,66857.0,0.0002]
[1772989233594,0.00039774,66866.0,66857.0,0.0002]
[1772989233796,0.00039774,66866.0,66858.0,0.01788506]
[1772989234145,0.00039774,66866.0,66859.0,0.00152]
[1772989235156,0.00039774,66866.0,66860.0,0.17051071]
[1772989235358,0.07476747,66875.0,66860.0,0.17051071]
[1772989235359,0.07476747,66875.0,66861.0,0.01788506]
[1772989235649,0.07476747,66875.0,66861.0,0.01800443]
[1772989235829,0.07476635,66876.0,66861.0,0.01800443]
[1772989235830,0.07476328,66878.0,66862.0,0.07478089]
[1772989236011,0.07476328,66878.0,66863.0,0.01788506]
[1772989236410,0.07476328,66878.0,66862.0,0.07478089]
[1772989236411,0.07476328,66878.0,66864.0,0.01788506]
[1772989236611,0.1805782,66876.0,66865.0,0.00152]
[1772989236815,0.1805782,66875.0,66865.0,0.00152]
[1772989237017,0.01354085,66874.0,66865.0,0.00152]
[1772989237612,0.01354085,66874.0,66862.0,0.07478089]
[1772989237613,0.07476328,66878.0,66866.0,0.00152]
[1772989237809,0.08807686,66878.0,66867.0,0.0747753]
[1772989238394,0.08807686,66878.0,66868.0,0.00152]
[1772989238948,0.07476328,66878.0,66868.0,0.00152]
[1772989239136,0.08763393,66878.0,66868.0,0.00152]
[1772989240659,0.01248749,66877.0,66868.0,0.00152]
[1772989240992,0.01248749,66877.0,66868.0,0.07629393]
[1772989241332,0.01248749,66877.0,66851.0,0.25422984]
[1772989241333,0.1805782,66868.0,66846.0,0.00152]
[1772989241554,0.1805782,66864.0,66847.0,0.00152]
[1772989241735,0.01227033,66861.0,66847.0,0.00152]
[1772989241888,0.14915033,66871.0,66847.0,0.00152]
[1772989242095,0.01227033,66867.0,66847.0,0.00152]
[1772989242302,0.1805782,66864.0,66847.0,0.00152]
[1772989242493,0.01349933,66861.0,66847.0,0.00152]
[1772989243108,0.01349933,66859.0,66847.0,0.00152]
[1772989243303,0.01349933,66859.0,66847.0,0.07631726]
[1772989243522,0.01349933,66859.0,66847.0,0.00152]
[1772989243908,0.01349933,66859.0,66847.0,0.07631761]
[1772989244108,0.01349933,66859.0,66847.0,0.00152]
[1772989245961,0.01285991,66857.0,66847.0,0.00152]
[1772989247631,0.01285991,66857.0,66846.0,0.00039774]
[1772989247838,0.07478984,66854.0,66847.0,0.00152]
[1772989248034,0.01243966,66851.0,66843.0,0.0002]
[1772989248239,0.01243966,66851.0,66844.0,0.00152]
[1772989248920,0.01243966,66851.0,66843.0,0.00011944]
[1772989249095,0.01243966,66851.0,66844.0,0.00152]
[1772989249451,0.01243966,66851.0,66843.0,0.00011944]
[1772989249649,0.01243966,66851.0,66844.0,0.00152]
[1772989249887,0.00757666,66851.0,66844.0,0.00152]
[1772989250198,0.07479431,66850.0,66845.0,0.00152]
[1772989251788,0.08161466,66850.0,66845.0,0.00152]
[1772989252319,0.07479431,66850.0,66845.0,0.00152]
[1772989252851,0.08141448,66850.0,66845.0,0.00152]